[Event "BSV-SCK IM 2022"]
[Site "Berlin"]
[Date "2022.04.11"]
[Round "5.5"]
[White "Eugene, Floryan"]
[Black "Schmidek, Emil"]
[Result "0-1"]
[ECO "B11"]
[WhiteElo "2404"]
[BlackElo "2383"]
[Annotator "TA"]
[PlyCount "70"]
[EventDate "2022.04.08"]
[EventType "tourn"]
[EventCountry "GER"]
[SourceTitle "playchess.com"]
[Source "ChessBase"]
[SourceQuality "1"]
[TimeControl "5400+30"]

{[%evp 9,70,-1,0,0,19,16,50,16,45,37,25,24,38,35,72,43,37,43,54,31,53,0,0,19,65,60,54,0,0,-6,8,12,4,0,18,-243,-239,-647,-647,-613,-504,-587,0,0,0,0,0,0,0,0,0,0,-6,-6,67,-834,-842,-1118,-1107,-1104,-1060,-1055,-1055]} 1. e4 {[%emt 0:00:09]} c6 {[%emt 0:00:06]} 2. Nc3 {[%emt 0:00:57]} d5 {[%emt 0:00:08]} 3. Nf3 {[%emt 0:00:08]} Bg4 {[%emt 0:00:07]} 4. h3 {[%emt 0:00:17]} Bxf3 {[%emt 0:00:07]} 5. gxf3 {[%emt 0:00:05]} e6 {[%emt 0:10:21]} 6. d4 {[%emt 0:00:16] B11: Caro-Kann: Two Knights Variation.} Qb6 {[%emt 0:05:04]} 7. Qd3 {[%emt 0:15:05] [#]} Na6 $146 {[%emt 0:24:12]} ({Predecessor:} 7... Ne7 8. Bd2 Nd7 9. O-O-O O-O-O 10. h4 h5 11. Bf4 Ng6 12. Bg3 Qa5 13. Bh3 Nb6 14. exd5 cxd5 15. Bxe6+ fxe6 16. Qxg6 {1-0 (40) Ivekovic,Z (2415)-Cop,T (2340) Bjelovar 2018}) 8. Be3 {[%emt 0:15:30] White is slightly better.} Qxb2 {[%emt 0:09:48]} 9. Rb1 {[%emt 0:00:10][%mdl 64] Deflection} Qa3 {[%emt 0:00:07]} 10. Rxb7 {[%emt 0:01:20]} Nb4 {[%emt 0:00:29]} 11. Qd2 {[%emt 0:00:24] Black must now prevent Be2.} Be7 {[%emt 0:05:55]} 12. Be2 {[%emt 0:16:20]} O-O-O {[%emt 0:04:02] [#]} 13. Rxe7 {[%emt 0:02:42]} Nxe7 {[%emt 0:00:19]} 14. O-O $1 {[%emt 0:00:09] And now Rb1 would win.} Kd7 {[%emt 0:03:43]} (14... Nxa2 $2 15. Nxa2 c5 16. Nc3 $18) 15. Bf4 {[%emt 0:00:57] Against Rb8} (15. Rb1 $5 {[%cal Rb1b3]}) 15... Na6 {[%emt 0:21:09]} (15... Nxa2 16. Nxa2 Qxa2 17. Qb4 $14) 16. Nb1 {[%emt 0:15:59]} Qxa2 {[%emt 0:02:33]} (16... Qa4 $11) 17. Qc3 $1 $14 {[%emt 0:00:46]} Rb8 $1 {[%emt 0:01:51]} 18. Bxb8 {[%emt 0:02:34]} (18. Na3 $14 Qb2 19. Qa5 (19. Qxb2 Rxb2 20. Bxa6 Ng6 $11)) 18... Rxb8 $11 {[%emt 0:00:35]} (18... Nxb8 $2 19. Na3 $18) 19. Nd2 {[%emt 0:02:50] aiming for Ra1.} Nb4 $132 {[%emt 0:04:12][%cal Ba6b4,Bb4d5,Bd5c7][%mdl 2080] Black is not keeping still} 20. Rb1 {[%emt 0:08:37]} ({Much worse is} 20. Ra1 Qxc2 21. Rxa7+ Ke8 $15) 20... a5 {[%emt 0:00:33]} 21. Bd3 {[%emt 0:01:39]} dxe4 $1 {[%emt 0:01:19]} 22. fxe4 {[%emt 0:00:55][%mdl 8192]} (22. Bc4 $1 $11 {and White has nothing to worry.} Ned5 {[#]} 23. Qxb4 $1 Rxb4 24. Bxa2) 22... Nbd5 $1 $19 {[%emt 0:00:24]} 23. Qc5 $2 {[%emt 0:05:57]} (23. exd5 Rxb1+ 24. Nxb1 Qxb1+ 25. Kh2) 23... Rxb1+ {[%emt 0:00:16]} 24. Kh2 {[%emt 0:00:04]} Nc7 {[%emt 0:01:23]} 25. Nc4 {[%emt 0:00:09] Threatens to win with Qd6+.} Rb7 $2 {[%emt 0:03:35]} ({Black should play} 25... Rb4 $19 26. Ne5+ Ke8) 26. Ne5+ $1 $11 {[%emt 0:02:43]} Ke8 {[%emt 0:00:11]} 27. Nxc6 {[%emt 0:00:09][%csl Gc6][%cal Rc5e7]} Ncd5 {[%emt 0:00:55][%cal Oe8f8]} 28. Qd6 {[%emt 0:01:03][%csl Gc6][%cal Rd6d8]} Nxc6 {[%emt 0:00:21]} 29. Qxc6+ {[%emt 0:00:02]} Rd7 {[%emt 0:00:11]} 30. Bb5 $1 {[%emt 0:02:25]} Nf6 {[%emt 0:00:05] Strongly threatening ...Qb2.} 31. d5 $1 {[%emt 0:02:01] d6 would kill now.} Qb2 {[%emt 0:01:13]} (31... exd5 $2 32. e5 Qb2 33. Qc8+ (33. exf6 Qe5+ 34. Kg2 gxf6 $18) 33... Ke7 34. exf6+ Kxf6 35. Qc6+ (35. Bxd7 Qe5+ 36. Kg1 Qe1+ 37. Kg2 Qe4+ 38. f3 Qe2+ 39. Kg3 Qe1+ 40. Kg2 Qe2+ 41. Kg3 Qe1+ 42. Kg2 Qe2+ $11) 35... Kg5 36. Qxd7 $18) ({Better is} 31... Ke7 $11 32. Qc5+ Rd6 33. Qc7+ Nd7 34. Bxd7 Rxd7 35. d6+ Ke8 36. Qc8+ Rd8 37. Qc6+ Kf8) 32. Qc8+ $2 {[%emt 0:03:27][%mdl 8192]} (32. d6 $14 Qe5+ 33. Kg1 Qg5+ 34. Kf1 Qxb5+ 35. Qxb5 Nxe4 36. Qxa5 Nxd6 37. Qb4) 32... Ke7 $19 {[%emt 0:00:06] Black is clearly winning.} 33. Qc5+ {[%emt 0:00:17]} Rd6 {[%emt 0:00:48]} 34. Qc7+ {[%emt 0:00:15]} Nd7 {[%emt 0:00:26]} 35. Bxd7 {[%emt 0:00:21]} Qb6 {[%emt 0:01:26] Weighted Error Value: White=0.53/Black=0.30} 0-1

[Event "BSV-SCK IM 2022"]
[Site "Berlin"]
[Date "2022.04.12"]
[Round "6.1"]
[White "Vogel, Constantin"]
[Black "Schmidek, Emil"]
[Result "0-1"]
[ECO "A13"]
[WhiteElo "2209"]
[BlackElo "2383"]
[Annotator "TA"]
[PlyCount "114"]
[EventDate "2022.04.08"]
[EventType "tourn"]
[EventCountry "GER"]
[SourceTitle "playchess.com"]
[Source "ChessBase"]
[SourceQuality "1"]
[TimeControl "5400+30"]

{[%evp 14,114,0,0,13,8,0,5,4,7,0,16,0,0,0,0,0,0,0,2,4,3,10,-11,41,27,60,-29,-25,-18,-24,-56,-55,-56,-54,-62,-57,-45,0,0,0,-5,-7,-41,-41,-49,-57,-70,-70,-70,-73,-97,-97,-97,-97,-97,-89,-99,-102,-116,-97,-97,-82,-82,-82,-176,-176,-176,-176,-176,-176,-176,-176,-176,-176,-176,-176,-176,-176,-176,-176,-176,-176,-176,-176,-176,-176,-176,-176,-176,-176,-176,-134,-966,-1277,-1261,-1242,-295,-527,-2877,-2381,-29974,-2014]} 1. c4 {[%emt 0:00:03]} e6 {[%emt 0:00:06]} 2. g3 {[%emt 0:00:31]} d5 {[%emt 0:00:07]} 3. Bg2 {[%emt 0:00:14]} d4 {[%emt 0:00:08]} 4. Nf3 {[%emt 0:00:12]} c5 {[%emt 0:00:06]} 5. e3 {[%emt 0:00:07]} Nc6 {[%emt 0:00:09]} 6. exd4 {[%emt 0:00:07]} cxd4 {[%emt 0:00:05]} 7. O-O {[%emt 0:00:10]} Nf6 {[%emt 0:00:06]} 8. d3 {[%emt 0:00:08]} Bd6 {[%emt 0:00:15] A13: English Opening: 1...e6.} 9. Bg5 {[%emt 0:01:12]} h6 {[%emt 0:00:08]} 10. Bxf6 {[%emt 0:00:09]} Qxf6 {[%emt 0:00:06] The position is equal.} 11. Nbd2 {[%emt 0:00:22][%cal Bb1d2,Bd2e4,Be4c5][%mdl 32]} Qe7 {[%emt 0:00:11]} 12. a3 {[%emt 0:03:42]} a5 $1 {[%emt 0:00:25] Inhibits b4.} 13. Ne4 {[%emt 0:00:26][%cal Ob2b4]} Bc7 {[%emt 0:00:09]} 14. b4 {[%emt 0:01:51]} axb4 {[%emt 0:00:59]} 15. axb4 {[%emt 0:00:11]} Rxa1 {[%emt 0:00:17]} 16. Qxa1 {[%emt 0:00:05] Threatens to win with b5.} f5 {[%emt 0:04:25]} 17. Nc5 {[%emt 0:01:59] Threatening Nh4.} O-O {[%emt 0:01:20] [#]} (17... Nxb4 {with more complications.} 18. Qa4+ Kf7 19. Qxb4 Bd6) 18. Qa4 $146 {[%emt 0:36:18][%cal Oc5a6] [#]} ({Predecessor:} 18. Re1 Nxb4 19. Nxe6 Nc2 20. Nxf8 Qxe1+ 21. Qxe1 Nxe1 22. Nxe1 Kxf8 23. Bd5 {½-½ (23) Wei,Y (2736)-Jakovenko,D (2708) Moscow 2019}) 18... Qd6 {[%emt 0:36:36]} ({Better is} 18... Nxb4 $1 $11 19. Qxb4 Bd6) 19. Re1 {[%emt 0:09:12]} Kh7 {[%emt 0:15:46]} 20. b5 {[%emt 0:20:24]} Qxc5 $11 {[%emt 0:02:56]} 21. bxc6 {[%emt 0:00:04]} bxc6 {[%emt 0:00:26]} 22. Nd2 {[%emt 0:00:44]} Qa5 {[%emt 0:06:42]} 23. Qxa5 {[%emt 0:01:12]} Bxa5 {[%emt 0:00:01]} 24. Re2 {[%emt 0:00:53]} Bxd2 {[%emt 0:13:17]} 25. Rxd2 $15 {[%emt 0:00:06][%mdl 4096] Endgame KRB-KRB} Bd7 {[%emt 0:00:05]} 26. Ra2 {[%emt 0:02:48] Against Ra8} Rb8 {[%emt 0:00:28] And now ...Rb1+ would win.} 27. Ra7 {[%emt 0:02:22]} Be8 {[%emt 0:00:14] next ...Rb1+ is good for Black.} 28. f4 {[%emt 0:01:27]} Kg6 {[%emt 0:05:24]} 29. Rc7 {[%emt 0:04:26]} Kf6 {[%emt 0:05:24]} 30. Bxc6 {[%emt 0:01:22]} Bxc6 {[%emt 0:00:07]} 31. Rxc6 {[%emt 0:00:05] KR-KR} Rb3 {[%emt 0:00:05]} 32. Rd6 {[%emt 0:01:14]} Rxd3 {[%emt 0:00:16]} 33. Kf1 {[%emt 0:02:36]} Ke7 {[%emt 0:01:12]} 34. c5 {[%emt 0:00:17]} g5 {[%emt 0:00:47][%cal Bg7g5,Bg5g4][%mdl 32] Hoping for ...gxf4.} 35. Ke2 {[%emt 0:01:56]} Re3+ {[%emt 0:00:28]} 36. Kf2 {[%emt 0:05:04]} Re4 {[%emt 0:04:27]} 37. Kf3 {[%emt 0:00:35]} g4+ {[%emt 0:02:02]} 38. Kf2 {[%emt 0:00:06]} h5 {[%emt 0:00:24][%cal Bh6h5,Bh5h4][%mdl 32]} 39. Kf1 {[%emt 0:01:44] [#]} (39. Kg1 $17) 39... h4 $1 $19 {[%emt 0:03:15]} 40. Kf2 {[%emt 0:00:34]} h3 {[%emt 0:00:26]} 41. Kf1 {[%emt 0:00:27]} Re3 {[%emt 0:00:00]} 42. Rxd4 {[%emt 0:00:00]} Rc3 {[%emt 0:00:00] Strongly threatening ...Rc1+.} 43. Rd1 {[%emt 0:00:00] Against Rc1} Rxc5 {[%emt 0:00:00]} 44. Kg1 {[%emt 0:00:00]} Rd5 {[%emt 0:00:00]} 45. Re1 {[%emt 0:00:00]} Kd6 {[%emt 0:00:00]} 46. Kh1 {[%emt 0:00:00]} Rd2 {[%emt 0:00:00]} 47. Kg1 {[%emt 0:00:00]} Kd5 {[%emt 0:00:00]} 48. Kh1 {[%emt 0:00:00]} Kd4 {[%emt 0:00:00]} 49. Kg1 {[%emt 0:00:00]} Kd3 {[%emt 0:00:00]} 50. Ra1 {[%emt 0:00:00]} Ke2 {[%emt 0:00:00]} 51. Rb1 {[%emt 0:00:00]} Rd4 {[%emt 0:00:00]} 52. Rb2+ {[%emt 0:00:00]} Kd3 {[%emt 0:00:00]} 53. Rb3+ $2 {[%emt 0:00:00][%mdl 8192] White does not recover from this.} (53. Kf2 $17) 53... Kc2 {[%emt 0:00:00]} 54. Re3 {[%emt 0:00:00]} Rd1+ {[%emt 0:00:00]} 55. Kf2 {[%emt 0:00:00] [#]} Rh1 $1 {[%emt 0:00:00]} 56. Rxe6 {[%emt 0:00:00]} Rxh2+ {[%emt 0:00:00]} 57. Kg1 {[%emt 0:00:00]} Rg2+ {[%emt 0:00:00] Weighted Error Value: White=0.55/Black=0.04 (flawless)} 0-1

[Event "BSV-SCK IM 2022"]
[Site "Berlin"]
[Date "2022.04.12"]
[Round "6.2"]
[White "Mcgowan, Daniel"]
[Black "Eugene, Floryan"]
[Result "*"]
[ECO "C76"]
[WhiteElo "2101"]
[BlackElo "2404"]
[Annotator "RC"]
[PlyCount "65"]
[EventDate "2022.04.08"]
[EventType "tourn"]
[EventCountry "GER"]
[SourceTitle "playchess.com"]
[Source "ChessBase"]
[SourceQuality "1"]
[TimeControl "5400+30"]

1. e4 {[%emt 0:00:06]} e5 {[%emt 0:00:07]} 2. Nf3 {[%emt 0:00:12]} Nc6 {[%emt 0:00:05]} 3. Bb5 {[%emt 0:00:10]} a6 {[%emt 0:00:16]} 4. Ba4 {[%emt 0:00:08]} Nf6 {[%emt 0:00:07]} 5. O-O {[%emt 0:00:34]} d6 {[%emt 0:00:11]} 6. c3 {[%emt 0:03:20]} Bd7 {[%emt 0:00:19]} 7. Re1 {[%emt 0:01:42]} g6 {[%emt 0:00:18]} 8. d4 {[%emt 0:01:58]} Bg7 {[%emt 0:00:05]} 9. d5 {[%emt 0:02:25]} Ne7 {[%emt 0:00:39]} 10. Bxd7+ {[%emt 0:00:49]} Nxd7 {[%emt 0:08:21]} 11. Nbd2 {[%emt 0:01:25]} O-O {[%emt 0:05:17]} 12. Nf1 {[%emt 0:03:00]} h6 {[%emt 0:02:31]} 13. Ng3 {[%emt 0:05:06]} Qe8 {[%emt 0:09:22]} 14. Nd2 {[%emt 0:11:44]} f5 {[%emt 0:04:56]} 15. exf5 {[%emt 0:01:12]} gxf5 {[%emt 0:00:09]} 16. Ndf1 {[%emt 0:02:07]} Nf6 {[%emt 0:08:28]} 17. c4 {[%emt 0:00:23]} f4 {[%emt 0:04:31]} 18. Ne4 {[%emt 0:01:42]} Nxe4 {[%emt 0:00:16]} 19. Rxe4 {[%emt 0:00:03]} Qg6 {[%emt 0:00:22]} 20. f3 {[%emt 0:02:37]} Nf5 {[%emt 0:02:58]} 21. Bd2 {[%emt 0:00:37]} Rf6 {[%emt 0:04:39]} 22. Qe2 {[%emt 0:02:38]} Qh5 {[%emt 0:03:06]} 23. Be1 {[%emt 0:05:59]} Raf8 {[%emt 0:02:41]} 24. Rd1 {[%emt 0:02:01]} Rg6 {[%emt 0:00:33]} 25. Kh1 {[%emt 0:02:16]} Rf7 {[%emt 0:02:05]} 26. Rd2 {[%emt 0:05:04]} Bf6 {[%emt 0:00:40]} 27. Qd3 {[%emt 0:00:54]} Rfg7 {[%emt 0:00:29]} 28. Ree2 {[%emt 0:00:32]} Nd4 {[%emt 0:01:27]} 29. Re4 {[%emt 0:00:56]} Nxf3 {[%emt 0:40:02]} 30. Qe2 {[%emt 0:43:50]} Rxg2 {[%emt 0:00:30]} 31. Qxg2 {[%emt 0:00:30]} Nxd2 {[%emt 0:00:30]} 32. Nxd2 {[%emt 0:00:30]} Rxg2 33. Kxg2 *

[Event "BSV-SCK IM 2022"]
[Site "Berlin"]
[Date "2022.04.12"]
[Round "6.3"]
[White "Glek, Igor"]
[Black "Muse, Drazen"]
[Result "1-0"]
[ECO "A55"]
[WhiteElo "2476"]
[BlackElo "2325"]
[Annotator "TA"]
[PlyCount "73"]
[EventDate "2022.04.08"]
[EventType "tourn"]
[EventCountry "GER"]
[SourceTitle "playchess.com"]
[Source "ChessBase"]
[SourceQuality "1"]
[TimeControl "5400+30"]

{[%evp 15,73,56,47,45,76,58,55,56,70,64,59,53,123,94,148,146,142,145,144,145,141,109,155,141,172,172,157,127,106,106,172,144,167,125,185,169,218,202,215,168,167,146,160,176,189,185,209,158,237,195,327,327,452,383,367,232,282,222,588,572]} 1. e4 {[%emt 0:01:59] Meulders,R} c6 {[%emt 0:04:15]} 2. c4 {[%emt 0:07:01]} e5 {[%emt 0:00:44]} 3. Nf3 {[%emt 0:01:08]} d6 {[%emt 0:03:22]} 4. d4 {[%emt 0:00:10]} Nd7 {[%emt 0:00:04]} 5. Nc3 {[%emt 0:00:08]} Ngf6 {[%emt 0:00:04]} 6. Be2 {[%emt 0:00:08]} Be7 {[%emt 0:00:04]} 7. O-O {[%emt 0:00:07]} O-O {[%emt 0:00:03]} 8. Be3 {[%emt 0:00:25]} Ng4 {[%emt 0:01:51]} 9. Bd2 {[%emt 0:00:13] A55: Old Indian Defence with Nf3 and e4.} h6 {[%emt 0:00:07]} 10. d5 {[%emt 0:02:57]} Ngf6 {[%emt 0:00:55]} 11. Be3 {[%emt 0:08:13] White is slightly better.} a6 {[%emt 0:04:30] [#]} 12. b4 $146 {[%emt 0:06:12]} ({Predecessor:} 12. Nd2 c5 13. a3 Nh7 14. g3 Bg5 15. f4 exf4 16. gxf4 Bf6 17. Bd3 Re8 18. Qf3 Rb8 19. Kh1 b5 20. Rg1 {0-1 (31) Ivanov,S (2574)-Loginov,V (2507) St Petersburg 2005 CBM 106 [Meulders,R]}) 12... cxd5 {[%emt 0:01:26]} 13. cxd5 {[%emt 0:00:38]} Nh7 {[%emt 0:00:10]} ({Black should try} 13... a5 $14) 14. a4 $16 {[%emt 0:00:56][%cal Ba2a4,Ba4a5][%mdl 32]} Ng5 {[%emt 0:00:13]} (14... Ndf6 $142) 15. Nd2 {[%emt 0:00:57]} Nf6 {[%emt 0:03:14]} 16. a5 {[%emt 0:03:26]} Bd7 {[%emt 0:00:28]} 17. h4 {[%emt 0:08:53]} Ngh7 {[%emt 0:00:37]} 18. Na4 {[%emt 0:00:12]} Ne8 {[%emt 0:04:51]} (18... Rc8 $142) 19. Nb6 {[%emt 0:04:26]} Bxh4 {[%emt 0:00:12]} 20. Nxa8 {[%emt 0:00:53]} Qxa8 {[%emt 0:00:07]} 21. g3 {[%emt 0:03:54]} Bg5 {[%emt 0:01:03]} 22. f4 {[%emt 0:04:46]} exf4 {[%emt 0:03:26]} (22... Be7 $16 {might work better.} 23. Qb3 Nef6) 23. gxf4 $18 {[%emt 0:00:15]} Bf6 {[%emt 0:00:15]} 24. Rc1 {[%emt 0:00:13][%cal Ba1c1,Bc1c3,Bc3g3][%mdl 32]} g5 {[%emt 0:00:07]} (24... Qd8 $16 25. Nc4 Bb5) 25. Nc4 {[%emt 0:03:05] aiming for Bd3.} gxf4 {[%emt 0:03:22]} (25... Qd8 {keeps fighting.} 26. Nb6 gxf4 27. Bxf4 Ng5) 26. Bxf4 {[%emt 0:02:54]} Bg5 {[%emt 0:00:07]} 27. Kh2 {[%emt 0:06:28]} Qd8 {[%emt 0:03:22]} 28. Rc3 {[%emt 0:01:56]} Bb5 {[%emt 0:00:31]} 29. Nb6 {[%emt 0:03:47] 0x0.002ceff46a05dp-1022s more active pieces. The black rooks are badly placed.} Bxe2 {[%emt 0:02:41]} 30. Qxe2 {[%emt 0:00:02]} Qe7 {[%emt 0:00:05]} 31. Rg3 {[%emt 0:04:28]} Kh8 {[%emt 0:03:10]} (31... Ng7 $16) 32. Nc4 {[%emt 0:01:12]} Bxf4 {[%emt 0:01:04]} (32... f6 {was necessary.} 33. Rh3 Rf7) 33. Rxf4 {[%emt 0:04:47] Chess con chili.} Nef6 {[%emt 0:00:22] Prevents Qh5.} 34. Qb2 {[%emt 0:02:52]} Rg8 {[%emt 0:00:57]} 35. Rxg8+ {[%emt 0:04:21]} Kxg8 {[%emt 0:00:04]} 36. e5 {[%emt 0:00:12]} Nxd5 {[%emt 0:02:28] [#]} (36... Ne8 {is more resistant.} 37. exd6 Nxd6) 37. Qg2+ $1 {[%emt 0:14:46] Weighted Error Value: White=0.22 (precise) /Black=0.43} 1-0

[Event "BSV-SCK IM 2022"]
[Site "Berlin"]
[Date "2022.04.12"]
[Round "6.3"]
[White "Mcgowan, Daniel"]
[Black "Eugene, Floryan"]
[Result "0-1"]
[ECO "A55"]
[WhiteElo "2101"]
[BlackElo "2404"]
[Annotator "TA"]
[PlyCount "73"]
[EventDate "2022.04.08"]
[EventType "tourn"]
[EventCountry "GER"]
[SourceTitle "playchess.com"]
[Source "ChessBase"]
[SourceQuality "1"]
[TimeControl "5400+30"]

{[%evp 15,73,53,53,50,74,53,55,48,65,56,77,64,97,107,136,122,135,127,150,125,137,128,161,161,159,144,150,112,113,112,155,165,161,140,227,182,209,181,222,147,169,143,179,169,222,213,228,151,273,212,328,291,442,376,358,206,266,214,631,594]} 1. e4 {[%emt 0:01:59] Meulders,R} c6 {[%emt 0:04:15]} 2. c4 {[%emt 0:07:01]} e5 {[%emt 0:00:44]} 3. Nf3 {[%emt 0:01:08]} d6 {[%emt 0:03:22]} 4. d4 {[%emt 0:00:10]} Nd7 {[%emt 0:00:04]} 5. Nc3 {[%emt 0:00:08]} Ngf6 {[%emt 0:00:04]} 6. Be2 {[%emt 0:00:08]} Be7 {[%emt 0:00:04]} 7. O-O {[%emt 0:00:07]} O-O {[%emt 0:00:03]} 8. Be3 {[%emt 0:00:25]} Ng4 {[%emt 0:01:51]} 9. Bd2 {[%emt 0:00:13] A55: Old Indian Defence with Nf3 and e4.} h6 {[%emt 0:00:07]} 10. d5 {[%emt 0:02:57]} Ngf6 {[%emt 0:00:55]} 11. Be3 {[%emt 0:08:13] White is slightly better.} a6 {[%emt 0:04:30] [#]} 12. b4 $146 {[%emt 0:06:12]} ({Predecessor:} 12. Nd2 c5 13. a3 Nh7 14. g3 Bg5 15. f4 exf4 16. gxf4 Bf6 17. Bd3 Re8 18. Qf3 Rb8 19. Kh1 b5 20. Rg1 {0-1 (31) Ivanov,S (2574)-Loginov,V (2507) St Petersburg 2005 CBM 106 [Meulders,R]}) 12... cxd5 {[%emt 0:01:26]} 13. cxd5 {[%emt 0:00:38]} Nh7 {[%emt 0:00:10]} 14. a4 {[%emt 0:00:56][%cal Ba2a4,Ba4a5][%mdl 32]} Ng5 {[%emt 0:00:13]} 15. Nd2 {[%emt 0:00:57]} Nf6 {[%emt 0:03:14]} 16. a5 {[%emt 0:03:26]} Bd7 {[%emt 0:00:28]} 17. h4 {[%emt 0:08:53]} Ngh7 {[%emt 0:00:37]} 18. Na4 {[%emt 0:00:12]} Ne8 {[%emt 0:04:51]} 19. Nb6 {[%emt 0:04:26]} Bxh4 {[%emt 0:00:12]} 20. Nxa8 {[%emt 0:00:53]} Qxa8 {[%emt 0:00:07]} 21. g3 {[%emt 0:03:54]} Bg5 {[%emt 0:01:03]} 22. f4 {[%emt 0:04:46]} exf4 {[%emt 0:03:26]} 23. gxf4 {[%emt 0:00:15]} Bf6 {[%emt 0:00:15]} 24. Rc1 {[%emt 0:00:13][%cal Ba1c1,Bc1c3,Bc3g3][%mdl 32]} g5 {[%emt 0:00:07]} (24... Qd8 $16 {keeps fighting.} 25. Nc4 Bb5) 25. Nc4 {[%emt 0:03:05]} gxf4 {[%emt 0:03:22]} 26. Bxf4 {[%emt 0:02:54]} Bg5 {[%emt 0:00:07]} 27. Kh2 {[%emt 0:06:28]} Qd8 {[%emt 0:03:22]} 28. Rc3 {[%emt 0:01:56]} Bb5 {[%emt 0:00:31]} 29. Nb6 {[%emt 0:03:47]} Bxe2 {[%emt 0:02:41]} (29... Qe7 {is a better defense.}) 30. Qxe2 $18 {[%emt 0:00:02]} Qe7 {[%emt 0:00:05]} 31. Rg3 {[%emt 0:04:28]} Kh8 {[%emt 0:03:10]} (31... f5 $16 32. e5 dxe5) 32. Nc4 {[%emt 0:01:12]} Bxf4 {[%emt 0:01:04]} (32... f6 $142 33. Rh3 Rf7) 33. Rxf4 {[%emt 0:04:47]} Nef6 {[%emt 0:00:22] Prevents Qh5.} (33... Rg8 {might work better.} 34. Qb2+ f6) 34. Qb2 {[%emt 0:02:52] [#] Strongly threatening e5.} Rg8 {[%emt 0:00:57]} 35. Rxg8+ {[%emt 0:04:21]} Kxg8 {[%emt 0:00:04]} 36. e5 {[%emt 0:00:12]} Nxd5 {[%emt 0:02:28] [#]} (36... dxe5 37. Qxe5 Qxb4) 37. Qg2+ $1 {[%emt 0:14:46][%mdl 32768] Weighted Error Value: White=0.28 (precise) /Black=0.44. Loss on time!?} 0-1

[Event "BSV-SCK IM 2022"]
[Site "Berlin"]
[Date "2022.04.12"]
[Round "6.4"]
[White "Ermitsch, Magnus"]
[Black "Eilenberg, Jonas"]
[Result "1/2-1/2"]
[ECO "C11"]
[WhiteElo "2127"]
[BlackElo "2135"]
[Annotator "TA"]
[PlyCount "49"]
[EventDate "2022.04.08"]
[EventType "tourn"]
[EventCountry "GER"]
[SourceTitle "playchess.com"]
[Source "ChessBase"]
[SourceQuality "1"]
[TimeControl "5400+30"]

{[%evp 12,49,7,0,15,18,25,34,39,39,31,51,33,31,33,29,34,35,22,31,25,14,45,0,0,0,8,0,0,-39,-54,-43,-36,-64,-62,-81,-80,-81,-27,-22]} 1. e4 {[%emt 0:00:09]} e6 {[%emt 0:00:08]} 2. d4 {[%emt 0:00:06]} d5 {[%emt 0:00:08]} 3. Nc3 {[%emt 0:00:05]} Nf6 {[%emt 0:00:05]} 4. e5 {[%emt 0:00:31]} Nfd7 {[%emt 0:00:07]} 5. f4 {[%emt 0:00:06]} c5 {[%emt 0:00:05]} 6. Nf3 {[%emt 0:00:05]} Nc6 {[%emt 0:00:05]} 7. Be3 {[%emt 0:00:03]} Rb8 {[%emt 0:00:05] C11: French: Classical System: 4 e5 and 4 Bg5 dxe4.} 8. Qd2 {[%emt 0:00:14]} Qa5 {[%emt 0:00:08]} 9. Be2 {[%emt 0:00:14]} b5 {[%emt 0:00:11] White is slightly better.} 10. a4 $1 {[%emt 0:00:09][%cal Rc3b5]} a6 {[%emt 0:00:13]} 11. O-O {[%emt 0:00:13]} b4 {[%emt 0:00:06] [#]} 12. Nb5 {[%emt 0:00:08][%cal Of4f5] Strongly threatening f5!} c4 {[%emt 0:00:14]} 13. Nd6+ {[%emt 0:00:09]} Bxd6 {[%emt 0:00:04]} 14. exd6 {[%emt 0:00:04] [#]} f5 $146 {[%emt 0:00:06]} ({Predecessor:} 14... O-O 15. Ne5 Nd8 16. b3 c3 17. Qd3 Rb6 18. f5 f6 19. Bh6 Nxe5 20. Qg3 Rb7 21. fxe6 Nxe6 22. dxe5 {1-0 (50) Demianjuk,A (2316)-Kiselev,V (2495) Voronezh 2007}) 15. Ne5 {[%emt 0:18:33]} Nd8 {[%emt 0:02:10]} 16. Qe1 {[%emt 0:02:17] Black must now prevent b3.} Nf6 {[%emt 0:10:07]} 17. Qh4 {[%emt 0:15:43]} O-O {[%emt 0:00:22]} 18. b3 {[%emt 0:20:46]} c3 {[%emt 0:08:39]} 19. Rf3 {[%emt 0:04:21] Threatens to win with Rh3.} Rb7 {[%emt 0:08:18]} 20. Rh3 {[%emt 0:02:21]} g6 $1 {[%emt 0:06:46]} 21. g4 {[%emt 0:08:01] aiming for g5.} Rg7 {[%emt 0:02:36]} 22. Kh1 {[%emt 0:02:22] Hoping for Rg1.} Qb6 $1 {[%emt 0:08:21]} 23. Rg1 {[%emt 0:04:12] And now gxf5 would win.} Qxd6 {[%emt 0:06:13]} 24. g5 {[%emt 0:08:26] [#]} Nd7 {[%emt 0:08:45]} ({Black should try} 24... Ne4 $1 $17) 25. Qf2 {[%emt 0:03:13] Weighted Error Value: White=0.09 (flawless) /Black=0.05 (flawless)} 1/2-1/2